Cogmind - Beta 17.1 @@@ ROGUE MODE // 2026.09.01 @ 09:00:59 Player: Cole Result: Destroyed by DR-QY8(R) with Subdweller Beam Cannon Performance ------------- Evolutions (0) 0 Regions Visited (3) 600 Robots Destroyed (20) 100 Value Destroyed (395) 395 Prototype IDs (1) 20 Alien Tech Used (0) 0 Bonus (0) 0 TOTAL SCORE: 1115 Bonus ------- None Cogmind --------- Core Integrity 0/250 Matter 300/300 Energy 249/250 System Corruption 0% Temperature Cool (9) Movement Core (200) Ox3 Location -10/Subcaves Parts ------- > --- POWER (1) -------- Ion Engine > --- PROPULSION (2) --- (None) > --- UTILITY (2) ------ Small Storage Unit > --- WEAPON (2) ------- (None) > --- INVENTORY (8) ---- Heat Sink Trap Scanner Improved Terrain Scanner System Shield Improved Trap Extractor (0/6) Peak State ------------ > --- POWER ------------ Nuclear Core > --- PROPULSION ------- Wheel Subdweller Monowheel > --- UTILITY ---------- Small Storage Unit Experimental Sensor Array > --- WEAPON ----------- Riot Gun Beam Rifle > --- INVENTORY -------- Ion Engine Heat Sink Trap Scanner Improved Terrain Scanner System Shield Improved Trap Extractor [Rating: 22] Favorites ----------- Power Nuclear Core Engine Ion Engine Power Core Nuclear Core Propulsion Wheel Wheel Wheel Utility Small Storage Unit Device Experimental Sensor Array Storage Small Storage Unit Weapon Grenade Launcher Energy Gun Beam Rifle Energy Cannon Ion Cannon Ballistic Gun Minigun Launcher Grenade Launcher Build | -11 -10 -10 -10 ------- Run | Yrd Mat Min Sub Slots Evolved . | . . . . Power . | . . . . Propulsion . | . . . . Utility . | . . . . Weapon . | . . . . Parts Attached 19 | 8 2 6 3 Power 3 | 2 . 1 . Engine 2 | 2 . . . Core 1 | . . 1 . Reactor . | . . . . Propulsion 4 | 2 . 1 1 Treads . | . . . . Leg . | . . . . Wheel 4 | 2 . 1 1 Hover . | . . . . Flight . | . . . . Utility 4 | 2 . 2 . Device 3 | 1 . 2 . Storage 1 | 1 . . . Processor . | . . . . Hackware . | . . . . Protection . | . . . . Artifact . | . . . . Weapon 8 | 2 2 2 2 Energy Gun 4 | 1 1 . 2 Energy Cannon 1 | . . 1 . Ballistic Gun 2 | 1 . 1 . Ballistic Cannon . | . . . . Launcher 1 | . 1 . . Special Weapon . | . . . . Impact Weapon . | . . . . Slashing Weapon . | . . . . Piercing Weapon . | . . . . Special Melee Weapon . | . . . . Unidentified Prototypes 1 | . . 1 . Parts Lost 10 | . . 1 9 Power 1 | . . . 1 Propulsion 4 | . . 1 3 Utility 1 | . . . 1 Weapon 4 | . . . 4 Highest Loss Streak 6 | . . 1 6 To Critical Strikes . | . . . . Average Backups 5 | 1 4 7 6 Power . | . 1 1 . Propulsion . | . 1 . . Utility 3 | . . 3 5 Weapon 1 | . 1 2 1 Tool/Special . | . . . . Unused Backups 5 | . 1 . 4 Power . | . . . . Propulsion . | . . . . Utility 3 | . . . 3 Weapon 2 | . 1 . 1 Tool/Special . | . . . . Average Slot Usage (%) 92 | . 100 98 86 Engine 3 | . 14 3 1 Core 9 | . . 10 11 Wheel 24 | . 28 26 22 Device 13 | . 14 14 12 Storage 14 | . 14 14 14 Energy Gun 8 | . 14 3 11 Ballistic Gun 7 | . 4 9 7 Launcher 8 | . 9 14 4 Peak Build Rating 22 | 9 10 20 22 Average Rating 14 | 6 9 13 18 On Entrance 9 | . 9 10 20 Avg Prop Armor Cover (%) . | . . . . Naked Turns . | . . . . Heaviest Build 23 | 14 17 23 19 Greatest Support 30 | 20 20 20 30 Greatest Overweight (x) 4 | . . 1 4 Average Overweight (x) . | . . . . Largest Inventory Capacity 8 | 8 8 8 8 Average Capacity 7 | 7 8 8 8 Most Carried 8 | 3 6 8 8 Average Carried 6 | 1 4 7 6 Final Capacity 8 | 8 8 8 8 Final Carried 8 | 3 5 8 5 Class Distribution -------------------- 100% | Mutant Dominant Class ---------------- Mutant | -10/Materials Mutant | -10/Mines Mutant | -10/Subcaves Resources | -11 -10 -10 -10 ----------- Run | Yrd Mat Min Sub Matter Collected 571 | 295 . 223 53 Remotely . | . . . . Salvage Created 406 | 181 . 194 31 Parts 36 | 22 . 10 4 Haulers Intercepted . | . . . . Recyclers Shooed . | . . . . Parts Field Recycled . | . . . . Retrieved Matter . | . . . . Parts Self-Destructed 10 | . . . 10 Prevented . | . . . . Parts Restored . | . . . . Kills | -11 -10 -10 -10 ------- Run | Yrd Mat Min Sub Combat Hostiles Destroyed 11 | . . 9 2 Guns 3 | . . 1 2 AOE 8 | . . 8 . Classes Destroyed 7 | 3 . 3 1 Worker 3 | 2 . 1 . Builder 1 | . . 1 . Tunneler 4 | 4 . . . Recycler 1 | 1 . . . Swarmer 3 | . . 3 . Grunt 6 | . . 6 . Subdweller 2 | . . . 2 Best Kill Streak 5 | 5 . 4 2 Combat Bots Only 4 | . . 4 2 Max Kills in Single Turn 2 | 2 . 2 1 Gunslinging . | . . . . Exploded 2 | . . 2 . Melee . | . . . . Uniques/NPCs Destroyed . | . . . . Combat | -11 -10 -10 -10 -------- Run | Yrd Mat Min Sub Hostile Shots Fired 77 | . . 27 50 Missed 27 | . . 10 17 Hits 50 | . . 17 33 Projectile 50 | . . 17 33 AOE 1 | . . . 1 Damage Taken 1103 | 26 . 268 809 Core 272 | . . 56 216 Absorbed by Shields . | . . . . Core Remaining (%) 100 | 100 . . . Volleys Fired 40 | 15 . 12 13 Largest 2 | 2 . 2 2 Hottest 106 | 60 . 55 106 Shots Fired 73 | 30 . 24 19 Gun 60 | 30 . 12 18 Cannon . | . . . . Launcher 13 | . . 12 1 Special . | . . . . Kinetic 29 | 15 . 12 2 Thermal 11 | . . . 11 Explosive 13 | . . 12 1 Electromagnetic 20 | 15 . . 5 Robot Hit Streak 18 | 6 . 5 18 Robot Miss Streak 4 | 4 . 2 2 Penetration Max . | . . . . Secondary Targets . | . . . . Shots Hit Robots 47 | 17 . 13 17 Core Hits 35 | 10 . 18 7 Critical Kills . | . . . . Critical Parts Destroyed . | . . . . Critical Strikes 1 | . . . 1 Burn 1 | . . . 1 Melee Attacks . | . . . . Impact . | . . . . Slashing . | . . . . Piercing . | . . . . Sneak Attacks . | . . . . Combat Hostiles . | . . . . Follow-up Attacks . | . . . . Damage Inflicted 1489 | 269 . 760 460 Guns 546 | 203 . 117 226 Cannons . | . . . . Explosions 943 | 66 . 643 234 Melee . | . . . . Ramming . | . . . . Kinetic 202 | 69 . 117 16 Thermal 197 | 66 . . 131 Explosive 877 | . . 643 234 Electromagnetic 213 | 134 . . 79 Impact . | . . . . Slashing . | . . . . Piercing . | . . . . Highest Corruption . | . . . . Average Corruption . | . . . . Corruption Purged . | . . . . Corruption Blocked . | . . . . Overload Shots . | . . . . Overflow Damage . | . . . . Projectiles . | . . . . Explosions . | . . . . Melee . | . . . . Knockbacks . | . . . . Impact . | . . . . Kinetic . | . . . . Secondary . | . . . . Self-Inflicted Damage 53 | 26 . 27 . Shots 2 | 1 . 1 . Rammed . | . . . . Targets Rammed . | . . . . Kicked . | . . . . Crushed . | . . . . Highest Temperature 84 | 60 . 84 6 Average Temperature 25 | 23 . 29 3 Received Heat Transfer 192 | . . 126 66 Siege Activations . | . . . . Martial Activations . | . . . . Shielding Activations . | . . . . Robots Disrupted . | . . . . Combat Hostiles . | . . . . Robots Corrupted . | . . . . Combat Hostiles . | . . . . Parts Fried . | . . . . Impact Corruptions . | . . . . Robots Melted . | . . . . Combat Hostiles . | . . . . Parts Melted . | . . . . Heat Transferred 457 | 50 . . 407 Parts Sabotaged . | . . . . Parts Stolen . | . . . . Parts Stripped . | . . . . Power Chain Reactions 1 | 1 . . . Alert | -11 -10 -10 -10 ------- Run | Yrd Mat Min Sub Maximum Alert Level 1 | . . 1 . Low Security (%) 85 | 100 100 74 . Level 1 14 | . . 25 . Level 2 . | . . . . Level 3 . | . . . . Level 4 . | . . . . Level 5 . | . . . . High Security . | . . . . Max Security . | . . . . Peak Influence 241 | 10 20 241 . Initial 6 | . 6 . . Average 56 | 3 4 99 . Influence Increases 340 | 35 14 291 . Destroy 0b10 Robot/C 180 | . . 180 . Destroy 0b10 Robot/NC 45 | 35 . 10 . Destroy Leader 40 | . . 40 . Successful Hack 14 | . 14 . . Destroy Structure 61 | . . 61 . Influence Decreases 340 | 25 24 80 211 Entered New Map 115 | . 4 . 111 Time Decay 195 | 25 20 70 80 Lost Part 30 | . . 10 20 Squads Dispatched . | . . . . Investigation . | . . . . Extermination . | . . . . Reinforcement . | . . . . Assault . | . . . . Garrison . | . . . . Intercept . | . . . . Searches Triggered . | . . . . Construction Impeded . | . . . . Haulers Reinforced . | . . . . Active Scanning Responses . | . . . . Cargo Convoy Interrupts . | . . . . Stealth | -11 -10 -10 -10 --------- Run | Yrd Mat Min Sub Distress Signals . | . . . . Communications Jammed . | . . . . Distress Signals . | . . . . Times Spotted 27 | . . 9 18 Peak Tracking Total 10 | . . 4 10 Tactical Retreats 3 | . . . 3 Traps | -11 -10 -10 -10 ------- Run | Yrd Mat Min Sub Traps Triggered 1 | . . 1 . Indirectly . | . . . . Trap Hack Attempts . | . . . . Triggered . | . . . . Disarmed . | . . . . Reprogrammed . | . . . . Reused . | . . . . Traps Extracted . | . . . . Installed . | . . . . Triggered . | . . . . Machines | -11 -10 -10 -10 ---------- Run | Yrd Mat Min Sub Machines Disabled . | . . . . Max in Single Turn . | . . . . Machines Repaired . | . . . . Machines Dismantled . | . . . . Machines Sabotaged . | . . . . Overloaded Fab Kills . | . . . . Hacking | -11 -10 -10 -10 --------- Run | Yrd Mat Min Sub Machines Accessed 3 | . 2 1 . Terminals 1 | . 1 . . Fabricators . | . . . . Repair Stations . | . . . . Recycling Units 1 | . 1 . . Scanalyzers . | . . . . Garrison Access . | . . . . Total Hacks 5 | . 4 1 . Successful 3 | . 2 1 . Failed 2 | . 2 . . Catastrophic 1 | . 1 . . Database Lockouts . | . . . . Manual 2 | . 2 . . Terminals 2 | . 2 . . Fabricators . | . . . . Repair Stations . | . . . . Recycling Units 2 | . 2 . . Scanalyzers . | . . . . Garrison Access . | . . . . Terminal Hacks 1 | . . 1 . Open Door 1 | . . 1 . Fabricator Hacks . | . . . . Repair Station Hacks . | . . . . Recycling Unit Hacks 1 | . 1 . . Retrieve Components 1 | . 1 . . Scanalyzer . | . . . . Garrison Access Hacks . | . . . . Unauthorized Hacks 1 | . 1 . . Terminals 1 | . 1 . . Botnet 1 | . 1 . . Fabricators . | . . . . Repair Stations . | . . . . Recycling Units . | . . . . Scanalyzers . | . . . . Garrison Access . | . . . . Data Cores Recovered . | . . . . Used . | . . . . Hacking Detections 2 | . 2 . . Full Trace Events . | . . . . Feedback Events . | . . . . Feedback Blocked . | . . . . Robot Schematics Acquired . | . . . . Robots Built . | . . . . Authchips . | . . . . Time . | . . . . Total Robot Build Rating . | . . . . Part Schematics Acquired . | . . . . Parts Built . | . . . . Authchips . | . . . . Time . | . . . . Total Part Build Rating . | . . . . Part Studies Acquired . | . . . . Parts Repaired . | . . . . Time . | . . . . Parts Recycled . | . . . . Recycled Matter . | . . . . Retrieved Matter . | . . . . Retrieved Components . | . . . . Parts Scanalyzed . | . . . . Part Schematics Acquired . | . . . . Parts Damaged . | . . . . Bothacking | -11 -10 -10 -10 ------------ Run | Yrd Mat Min Sub Used RIF Installer . | . . . . Robots Hacked . | . . . . Non-combat . | . . . . Combat . | . . . . Robot Hacks Applied . | . . . . Relay Couplers Released . | . . . . Fabnet Peak Effective % . | . . . . Robots Rewired . | . . . . Allies Hacked . | . . . . Hacks Repelled . | . . . . Allies | -11 -10 -10 -10 -------- Run | Yrd Mat Min Sub Total Allies . | . . . . Largest Group . | . . . . Highest-Rated Group . | . . . . Highest-Rated Ally . | . . . . Total Orders . | . . . . Ally Attacks . | . . . . Total Damage . | . . . . Kills . | . . . . Allies Corrupted . | . . . . Allies Melted . | . . . . Intel | -11 -10 -10 -10 ------- Run | Yrd Mat Min Sub Active Infowar (turns) 725 | 41 88 256 340 Sensors 353 | . . 13 340 Terrain 187 | 41 88 58 . Traps 185 | . . 185 . Robot Analysis Total . | . . . . Derelict Logs Recovered 1 | . . 1 . Drone Launches . | . . . . Drone Recoveries . | . . . . Exploration | -11 -10 -10 -10 ------------- Run | Yrd Mat Min Sub Turns Passed 829 | 119 88 256 366 Spaces Moved 771 | 80 100 258 333 Core 11 | 2 . . 9 Treads . | . . . . Legs . | . . . . Wheels 760 | 78 100 258 324 Hover . | . . . . Flight . | . . . . Fastest Speed 50 | 50 80 80 80 Average Speed 86 | 79 80 81 93 Slowest Speed 250 | 80 80 95 250 Overloaded Moves . | . . . . Propulsion Burnouts . | . . . . Robots Hopped . | . . . . Potential Cave-ins . | . . . . Cave-ins Triggered . | . . . . Exploration Rate (%) 26 | 3 13 55 33 Regions Visited 3 Branch Regions 2 Pre-discovered Areas 1 | . . 1 . Known Exits Taken . | . . . . Unknown Exits Taken 3 | 1 1 1 . Scrap Searched 1 | . . 1 . Spaces Dug . | . . . . Terrain Destroyed 102 | 7 . 92 3 Melee . | . . . . Projectile . | . . . . AOE 102 | 7 . 92 3 Terrain Rammed . | . . . . Walls Destroyed . | . . . . Machines Disabled . | . . . . Actions | -11 -10 -10 -10 --------- Run | Yrd Mat Min Sub Total 866 | 104 109 282 371 Wait 19 | . . 1 18 Move 768 | 79 99 257 333 Hop . | . . . . Pick Up 8 | 2 3 2 1 Fast Attach 14 | 7 2 4 1 Attach 4 | . . 1 3 Detach 4 | . 2 2 . Swap 3 | 1 . 1 1 Drop 6 | . 3 2 1 Fire 40 | 15 . 12 13 Melee . | . . . . Ram . | . . . . Kick . | . . . . Crush . | . . . . Escape Stasis . | . . . . Rewire . | . . . . Trap . | . . . . Miscellaneous . | . . . . Route ------- -11/Scrapyard -10/Materials -10/Mines (discovered 2 exits: [*Mat] / [*Sub]) -10/Subcaves (discovered 1 exit: [*Mat]) History --------- Turn | Location | Event 13 | -11/Scrapyard | Discovered new exit (range 15) 120 | -11/Scrapyard | Entered Materials 181 | -10/Materials | Discovered new exit (range 5) 208 | -10/Materials | Entered Mines 210 | -10/Mines | Learned location of Zion (-7) 250 | -10/Mines | Met a Derelict who couldn't figure out how to use a Trap Extractor 316 | -10/Mines | Build established: Mutant 386 | -10/Mines | Discovered new exit (range 11) 411 | -10/Mines | Found DCF Scrap (13 items) 430 | -10/Mines | Discovered new exit (range 10) 449 | -10/Mines | Found a damaged Exp. Sensor Array with a note attached 451 | -10/Mines | Found Prototype Device 451 | -10/Mines | Identified Exp. Sensor Array 464 | -10/Mines | Entered Subcaves 495 | -10/Subcaves | Shifting Twisted Machinery released Flamer 500 | -10/Subcaves | Shifting Twisted Machinery released Riot Gun 557 | -10/Subcaves | Ambushed by swarm of Subdwellers 560 | -10/Subcaves | Ambushed by Subdwellers from Twisted Machinery 560 | -10/Subcaves | Ambushed by Subdwellers from Twisted Machinery 560 | -10/Subcaves | Ambushed by Subdwellers from Twisted Machinery 610 | -10/Subcaves | Lost 4 allies 805 | -10/Subcaves | Core integrity fell below 50% 819 | -10/Subcaves | Core integrity fell below 20% 828 | -10/Subcaves | Discovered new exit (range 15) 830 | -10/Subcaves | Destroyed by DR-QY8(R) with Subdweller Beam Cannon Last Messages --------------- 00573_ GG-KRS(R) destroyed. [Achievement: Slippery One] 00642_ Minigun destroyed. 00648_ EE-0PV(R) suffers critical hit (Burn). 00650_ EE-0PV(R) destroyed. 00654_ IA-ORE(R) destroyed. 00658_ Acquired 19 matter. 00660_ Acquired Sub. Monowheel. 00664_ Acquired 12 matter. 00779_ Nuclear Core destroyed. 00781_ PH-L4K(R) misfires. 00796_ Acquired 13 matter. 00803_ 7S-EW7(R): "SUBHATE!" 00804_ Exp. Sensor Array destroyed. 00806_ Riot Gun destroyed. 00808_ Sub. Monowheel destroyed. 00809_ Acquired 9 matter. 00811_ Wheel destroyed. 00823_ Beam Rifle destroyed. 00828_ EXIT=FOUND Map ----- +----------------------------------------------------+ | ?????????????????????????????????????????????????? | | ?????????????????????????????????????????????????? | | ?????????????????????????????????????????????????? | | ?????????????????????????????????????????????????? | | ?????????????????????????????????????????????????? | | ?????????????????????????????????????????????????? | | ?????????????????????????????????????????????????? | | ?????????????????????????????????????????????????? | | ?????????????????????????????????????????????????? | | ?????????????????????????????????????????????????? | | ?????????????????????????????????????????????????? | | ?????????????????????????#???????????????????????? | | ?????????????????????##?# ##?????????????????????? | | ???????????????????# #"## ?????????????????????? | | ????????????????? """" %?????????????????????? | | ?????????????????"""" ?????????????????????? | | ?????????????????"" # # ####??????????????????? | | ??????????????????? % #????????????????? | | ????????????????????? # ##??????????????? | | ??????????????????????# # #?????????????? # | | ???????????????????????# ##????? ?????? # | | ????????????????????????# ##???? ?????? # | | ???????????????????????## ###? ##???? # | | ???????????????????##### """#? #????"" "# | | ?????????????????# # % RR" ##?? #????"" "# | | ??????????# ! % @ ## "#??""##???#""#? | | ?????????? =%= % #### ##?##""#??##""#? | | ?????????? <* ###### % R# #??#"""#?## "## | | ????????????????????# % ##### "### " ## | | ???????????????????# ## " % ## """" | | ?????????????????? ?# # # """""" """"# | | ????????????????? ## " """ "" ""## | | ???????????????? ##% # """"""""""# | | ?????????????? ## "### " """ | | ?????????????# ## ##########?## " ### | | ?????????????? ##??## #????????????## % ##?#### | | ??????????????# ?????##??????????????#####?????# | | ????????????????#????????????????????????????????? | | ?????????????????????????????????????????????????? | | ?????????????????????????????????????????????????? | | ?????????????????????????????????????????????????? | | ?????????????????????????????????????????????????? | | ?????????????????????????????????????????????????? | | ?????????????????????????????????????????????????? | | ?????????????????????????????????????????????????? | | ?????????????????????????????????????????????????? | | ?????????????????????????????????????????????????? | | ?????????????????????????????????????????????????? | | ?????????????????????????????????????????????????? | | ?????????????????????????????????????????????????? | +----------------------------------------------------+ Best States ------------- Heat Dissipation 25 Energy Generation 14 Energy Capacity 250 Matter Stores 300 Matter Capacity 300 Sight Range 16 Robot Scan Range 20 Terrain Scan Range 16 Terrain Scan Density 10 Evasion (%) 44 Item Schematics ----------------- None Robot Schematics ------------------ None Fabricated ------------ Nothing Repaired ---------- Nothing Studied --------- None Alien Tech Used ----------------- None Achievements -------------- Slippery One Challenges ------------ None Game ------ Seed FocalSchematicBlasthammer Manual? 0 Play Time 00:11:38 Cumulative 37.1 hours Start 2026.09.01 @ 08:52:24 End 2026.09.01 @ 09:00:59 Sessions 1 Manual Loads 0 Difficulty Rogue Special Mode None Game No. 101 Rogue 101 Adventurer 0 Explorer 0 Win Type - Total 0 Types 0/0/0/0/0/0/0/0/0/0 Lore% 22 Gallery% 29 Achievement% 20 Wizard Run 0 Options --------- Layout 2 ASCII 0 Keyboard 1 Movement Numpad Keybinds 1 Fullscreen 1 Font 32/SmallcapsGlow Map View 77x44 Zoom Use 0% Tactical HUD 1 Map Filters NONE Filters NONE Steam 1 RUN: 18852255-9e4f-4ceb-9511-1d16617d636c